Cogmind - Beta 12 @@@ ROGUE MODE // 2024.01.31 @ 16:01:48 Player: %41THX3142 Result: Destroyed by G-47 Trooper with Particle Gun Performance ------------- Evolutions (0) 0 Regions Visited (1) 200 Robots Destroyed (24) 120 Value Destroyed (406) 406 Prototype IDs (0) 0 Alien Tech Used (0) 0 Bonus (0) 0 TOTAL SCORE: 726 Bonus ------- None Cogmind --------- Core Integrity 0/250 Matter 209/300 Energy 248/250 System Corruption 0% Temperature Cool (29) Movement Rolling (95) Ox1 Location -10/Materials Parts ------- > --- POWER (1) -------- Ion Engine > --- PROPULSION (2) --- Wheel Wheel > --- UTILITY (2) ------ Medium Storage Unit > --- WEAPON (2) ------- Autogun Autogun > --- INVENTORY (10) --- Ion Engine Wheel Wheel Wheel Sensor Array Improved Terrain Scanner Utility Shielding Medium Armor Plating Assault Rifle Grenade Launcher Peak State ------------ > --- POWER ------------ Ion Engine > --- PROPULSION ------- Wheel Wheel > --- UTILITY ---------- Medium Storage Unit Seismic Detector > --- WEAPON ----------- Autogun Autogun > --- INVENTORY -------- Ion Engine Wheel Wheel Wheel Sensor Array Improved Terrain Scanner Utility Shielding Medium Armor Plating Assault Rifle Grenade Launcher [Rating: 10] Favorites ----------- Power Light Ion Engine Engine Light Ion Engine Propulsion Wheel Wheel Wheel Utility Small Storage Unit Device Seismic Detector Storage Small Storage Unit Weapon Assault Rifle Ballistic Gun Assault Rifle Launcher Grenade Launcher Build | -11 -10 ------- Run | Jun Mat Slots Evolved . | . . Power . | . . Propulsion . | . . Utility . | . . Weapon . | . . Parts Attached 24 | 8 16 Power 4 | 1 3 Engine 4 | 1 3 Core . | . . Reactor . | . . Propulsion 4 | 2 2 Treads . | . . Leg . | . . Wheel 4 | 2 2 Hover . | . . Flight . | . . Utility 4 | 3 1 Device 2 | 2 . Storage 2 | 1 1 Processor . | . . Hackware . | . . Protection . | . . Artifact . | . . Weapon 12 | 2 10 Energy Gun . | . . Energy Cannon . | . . Ballistic Gun 9 | 2 7 Ballistic Cannon . | . . Launcher 3 | . 3 Special Weapon . | . . Impact Weapon . | . . Slashing Weapon . | . . Piercing Weapon . | . . Special Melee Weapon . | . . Unidentified Prototypes . | . . Parts Lost 3 | . 3 Power . | . . Propulsion 1 | . 1 Utility 1 | . 1 Weapon 1 | . 1 Highest Loss Streak 2 | . 2 To Critical Strikes . | . . Average Slot Usage (%) 99 | . 99 Engine 13 | . 13 Wheel 28 | . 28 Device 13 | . 13 Storage 14 | . 14 Ballistic Gun 25 | . 25 Launcher 2 | . 2 Naked Turns . | . . Heaviest Build 22 | 12 22 Greatest Support 26 | 26 26 Greatest Overweight (x) 1 | . 1 Average Overweight (x) . | . . Largest Inventory Capacity 10 | 8 10 Average Capacity 8 | 7 8 Most Carried 10 | 8 10 Average Carried 6 | 3 8 Final Capacity 10 | 8 10 Final Carried 10 | 8 10 Class Distribution -------------------- 100% | Mutant Dominant Class ---------------- Mutant | -10/Materials Resources | -11 -10 ----------- Run | Jun Mat Matter Collected 683 | 394 289 Remotely . | . . Salvage Created 538 | 188 350 Parts 33 | 12 21 Haulers Intercepted 1 | . 1 Recyclers Shooed . | . . Parts Field Recycled . | . . Retrieved Matter . | . . Parts Self-Destructed . | . . Prevented . | . . Kills | -11 -10 ------- Run | Jun Mat Combat Hostiles Destroyed 11 | . 11 Guns 4 | . 4 AOE 7 | . 7 Classes Destroyed 7 | 2 5 Worker 2 | . 2 Tunneler 7 | 7 . Hauler 1 | . 1 Recycler 1 | 1 . Watcher 2 | . 2 Swarmer 3 | . 3 Grunt 8 | . 8 Best Kill Streak 6 | 2 6 Combat Bots Only 5 | . 5 Max Kills in Single Turn 2 | 1 2 Gunslinging . | . . Exploded 2 | . 2 Melee . | . . Uniques/NPCs Destroyed . | . . Combat | -11 -10 -------- Run | Jun Mat Damage Taken 576 | . 576 Core 260 | . 260 Absorbed by Shields . | . . Core Remaining (%) 100 | 100 . Volleys Fired 61 | 29 32 Largest 2 | 2 2 Hottest 53 | 40 53 Shots Fired 115 | 58 57 Gun 106 | 58 48 Cannon . | . . Launcher 9 | . 9 Special . | . . Kinetic 106 | 58 48 Thermal . | . . Explosive 9 | . 9 Electromagnetic . | . . Robot Hit Streak 7 | 7 6 Robot Miss Streak 4 | 3 4 Penetration Max . | . . Secondary Targets . | . . Shots Hit Robots 60 | 37 23 Core Hits 42 | 14 28 Critical Kills . | . . Critical Parts Destroyed . | . . Critical Strikes . | . . Melee Attacks . | . . Impact . | . . Slashing . | . . Piercing . | . . Sneak Attacks . | . . Combat Hostiles . | . . Follow-up Attacks . | . . Damage Inflicted 1194 | 372 822 Guns 698 | 372 326 Cannons . | . . Explosions 496 | . 496 Melee . | . . Ramming . | . . Kinetic 698 | 372 326 Thermal . | . . Explosive 496 | . 496 Electromagnetic . | . . Impact . | . . Slashing . | . . Piercing . | . . Highest Corruption . | . . Average Corruption . | . . Corruption Purged . | . . Corruption Blocked . | . . Overload Shots . | . . Overflow Damage . | . . Projectiles . | . . Explosions . | . . Melee . | . . Knockbacks . | . . Impact . | . . Kinetic . | . . Secondary . | . . Self-Inflicted Damage . | . . Shots . | . . Rammed . | . . Targets Rammed . | . . Kicked . | . . Crushed . | . . Highest Temperature 40 | . 40 Average Temperature 9 | . 9 Received Heat Transfer 171 | . 171 Siege Activations . | . . Robots Corrupted . | . . Combat Hostiles . | . . Parts Fried . | . . Impact Corruptions . | . . Robots Melted . | . . Combat Hostiles . | . . Parts Melted . | . . Heat Transferred . | . . Parts Sabotaged . | . . Parts Stolen . | . . Parts Stripped . | . . Power Chain Reactions . | . . Missiles Intercepted . | . . Alert | -11 -10 ------- Run | Jun Mat Peak Influence 281 | 40 281 Initial 26 | . 26 Average 107 | 18 153 Maximum Alert Level 1 | . 1 Low Security (%) 72 | 100 57 Level 1 27 | . 42 Level 2 . | . . Level 3 . | . . Level 4 . | . . Level 5 . | . . High Security . | . . Max Security . | . . Squads Dispatched 2 | . 2 Investigation 2 | . 2 Extermination . | . . Reinforcement . | . . Assault . | . . Garrison . | . . Intercept . | . . Searches Triggered . | . . Construction Impeded . | . . Haulers Reinforced . | . . Active Scanning Responses . | . . Cargo Convoy Interrupts . | . . Stealth | -11 -10 --------- Run | Jun Mat Distress Signals 2 | . 2 Communications Jammed . | . . Distress Signals . | . . Times Spotted 23 | . 23 Peak Tracking Total 6 | . 6 Tactical Retreats . | . . Traps | -11 -10 ------- Run | Jun Mat Traps Triggered 3 | . 3 Indirectly . | . . Trap Hack Attempts . | . . Triggered . | . . Disarmed . | . . Reprogrammed . | . . Reused . | . . Traps Extracted . | . . Installed . | . . Triggered . | . . Machines | -11 -10 ---------- Run | Jun Mat Machines Disabled . | . . Max in Single Turn . | . . Machines Repaired . | . . Machines Sabotaged . | . . Overloaded Fab Kills . | . . Hacking | -11 -10 --------- Run | Jun Mat Machines Accessed 5 | . 5 Terminals 4 | . 4 Fabricators . | . . Repair Stations . | . . Recycling Units 1 | . 1 Scanalyzers . | . . Garrison Access . | . . Total Hacks 12 | . 12 Successful 6 | . 6 Failed 6 | . 6 Catastrophic 2 | . 2 Database Lockouts . | . . Manual 7 | . 7 Terminals 11 | . 11 Fabricators . | . . Repair Stations . | . . Recycling Units 1 | . 1 Scanalyzers . | . . Garrison Access . | . . Terminal Hacks 5 | . 5 Level Access Points 1 | . 1 Branch Access Points 1 | . 1 Emergency Access Points 1 | . 1 Locate Traps 1 | . 1 Zone Layout 1 | . 1 Fabricator Hacks . | . . Repair Station Hacks . | . . Recycling Unit Hacks 1 | . 1 Report Inventory 1 | . 1 Scanalyzer . | . . Garrison Access Hacks . | . . Unauthorized Hacks . | . . Terminals . | . . Fabricators . | . . Repair Stations . | . . Recycling Units . | . . Scanalyzers . | . . Garrison Access . | . . Data Cores Recovered . | . . Used . | . . Hacking Detections 4 | . 4 Full Trace Events 1 | . 1 Feedback Events . | . . Feedback Blocked . | . . Robot Schematics Acquired . | . . Robots Built . | . . Authchips . | . . Time . | . . Total Robot Build Rating . | . . Part Schematics Acquired . | . . Parts Built . | . . Authchips . | . . Time . | . . Total Part Build Rating . | . . Parts Repaired . | . . Time . | . . Parts Recycled . | . . Recycled Matter . | . . Retrieved Matter . | . . Retrieved Components . | . . Parts Scanalyzed . | . . Part Schematics Acquired . | . . Parts Damaged . | . . Bothacking | -11 -10 ------------ Run | Jun Mat Used RIF Installer . | . . Robots Hacked . | . . Non-combat . | . . Combat . | . . Robot Hacks Applied . | . . Relay Couplers Released . | . . Fabnet Peak Effective % . | . . Robots Rewired . | . . Allies Hacked . | . . Hacks Repelled . | . . Allies | -11 -10 -------- Run | Jun Mat Total Allies . | . . Largest Group . | . . Highest-Rated Group . | . . Highest-Rated Ally . | . . Total Orders . | . . Ally Attacks . | . . Total Damage . | . . Kills . | . . Allies Corrupted . | . . Allies Melted . | . . Intel | -11 -10 ------- Run | Jun Mat Robot Analysis Total . | . . Derelict Logs Recovered . | . . Drone Launches . | . . Drone Recoveries . | . . Exploration | -11 -10 ------------- Run | Jun Mat Turns Passed 893 | 305 588 Spaces Moved 705 | 227 478 Core 1 | 1 . Treads . | . . Legs . | . . Wheels 704 | 226 478 Hover . | . . Flight . | . . Fastest Speed 50 | 50 80 Average Speed 88 | 90 87 Slowest Speed 100 | 100 95 Overloaded Moves . | . . Propulsion Burnouts . | . . Robots Hopped . | . . Cave-ins Triggered . | . . Exploration Rate (%) 34 | 7 61 Regions Visited 1 Branch Regions . Pre-discovered Areas . | . . Known Exits Taken . | . . Unknown Exits Taken 1 | 1 . Scrap Searched . | . . Spaces Dug . | . . Terrain Destroyed 29 | . 29 Melee . | . . Projectile . | . . AOE 29 | . 29 Terrain Rammed . | . . Walls Destroyed . | . . Machines Disabled . | . . Actions | -11 -10 --------- Run | Jun Mat Total 871 | 271 600 Wait 54 | . 54 Move 704 | 226 478 Hop . | . . Pick Up 17 | 7 10 Fast Attach 10 | 8 2 Attach 3 | . 3 Detach 1 | 1 . Swap 11 | . 11 Drop 10 | . 10 Fire 61 | 29 32 Melee . | . . Ram . | . . Kick . | . . Crush . | . . Escape Stasis . | . . Rewire . | . . Trap . | . . Miscellaneous . | . . Route ------- -11/Junkyard -10/Materials (discovered 5 exits: *Mat x3 / *Min x2) History --------- Turn | Location | Event 18 | -11/Junkyard | Discovered new exit (range 15) 306 | -11/Junkyard | Entered Materials 321 | -10/Materials | Build established: Mutant 443 | -10/Materials | Discovered new exit (range 7) 557 | -10/Materials | Core integrity fell below 50% 692 | -10/Materials | Discovered new exit (range 7) 722 | -10/Materials | Identified exit to Mines 722 | -10/Materials | Identified exit to Materials 774 | -10/Materials | Core integrity fell below 20% 894 | -10/Materials | Destroyed by G-47 Trooper with Particle Gun Last Messages --------------- Wheel (50%) 00822_ Acquired 11 matter. 00822_ U-05 Engineer lays Concrete. 00824_ Acquired 13 matter. 00825_ U-05 Engineer builds a Wall. 00826_ U-05 Engineer lays Concrete. 00828_ U-05 Engineer builds a Wall. 00829_ U-05 Engineer lays Concrete. 00831_ U-05 Engineer builds a Wall. 00831_ U-05 Engineer lays Concrete. 00831_ U-05 Engineer builds a Wall. 00832_ U-05 Engineer lays Concrete. 00833_ Acquired 4 matter. 00834_ U-05 Engineer lays Concrete. 00834_ U-05 Engineer builds a Wall. 00848_ Dropped Ion Engine. 00854_ Dropped Lgt. Ion Engine. 00854_ Acquired Ion Engine. 00875_ Seismic Detector destroyed. 00881_ K-01 Serf cleans the Material Compactor. Map ----- +----------------------------------------------------+ | ??????????????????????????# ?????# # [ | | ???????????>????#?????????# ###### # | | ????????????????# "???##### ! | | ????????????????# "???+ | | ????????????????? ""??##### = = ! | | ?????????# ??????? ?########+#########+# | | ?????????# #######+## # #?# | | ?????????+ # T #?# "" | | ?????????# # #?# "R | | ?????????# [=|! # #?# " | | ?????????######+####### # #?# | | ??????????????????????## !|# #?# | | ??????????????????????##*% #######+####### | | ??????????????????????## ! + #???# | | ??????????????????????## # #???# | | ??????????????????????##! # ! #???# | | ??????????????????????# # #???# | | ?????????????########### ###########???# | | ?????????????# + ##########????? | | ?????????????# """ # + #????? | | ?????????????# """"" # # """ #????? | | ?????????????# """"" # # """ #????? | | ?????????????# """"" #= # """ #????? | | ?????????????# """k # * # #????? | | ?????????????# * #= + = #????? | | ?????????????# @ # # "Y" #????? | | ?????????????#####g##### # """ #????? | | ?????????????????#g#???# # #????? | | ?????????????????# ##### ##########????? | | ??????#########??# ???????? | | ??????# ??# #### #??????????? | | ??????# | ## #??### ????????????? | | ??????# # #????# ????????????? | | ??????# / #????# ???????????? | | ??????# """ # #?????### ???????????? | | ??????# "Y" """ # #???????? #??????????? | | ??????????" """?# #???????? #??????????? | | ?????????? ?# #?????????#??????????? | | ??????????####??# #????????????????????? | | ????????????????# #????????????????????? | | ????????????????# #????????????????????? | | ????????????????# #????????????????????? | | ????????????????# #????????????????????? | | ????????????????# #????????????????????? | | ????????????????# +????????????????????? | | ????????????????# #????????????????????? | | ????????????????? #????????????????????? | | ????????????????? ?????????????????????? | | ?????????????????????????????????????????? | | ?????????????????????????????????????????? | +----------------------------------------------------+ Best States ------------- Heat Dissipation 25 Energy Generation 10 Energy Capacity 250 Matter Stores 300 Matter Capacity 300 Sight Range 16 Terrain Scan Range 16 Terrain Scan Density 10 Evasion (%) 44 Item Schematics ----------------- None Robot Schematics ------------------ None Fabricated ------------ Nothing Alien Tech Used ----------------- None Achievements -------------- None Challenges ------------ None Game ------ Seed LinearSniperGun Manual? 0 Play Time 00:15:23 Cumulative 23.1 hours Start 2024.01.31 @ 15:46:52 End 2024.01.31 @ 16:01:48 Sessions 1 Manual Loads 0 Difficulty Rogue Special Mode None Game No. 14 Rogue 14 Adventurer 0 Explorer 0 Win Type - Total 0 Types 0/0/0/0/0/0/0/0/0 Lore% 14 Gallery% 19 Achievement% 17 Wizard Run 0 Options --------- ASCII 0 Keyboard 1 Movement Vi Keybinds 0 Fullscreen 1 Font 18/Terminus Map View 76x50 Tactical HUD 1 Map Filters NONE Filters NONE Steam 1 RUN: 2b139ee1-0f7a-4b1e-9bd3-2a5629ab138f